[Event "Late-Titled-Tuesday-Blitz-June-18-2024"]
[Site "Chess.com"]
[Date "2024.06.18"]
[Round "3"]
[White "pooh2012"]
[Black "evgchess5"]
[Result "0-1"]
[WhiteElo "2566"]
[BlackElo "2918"]
[TimeControl "180+1"]
[EndTime "14:29:28 PDT"]
[Termination "evgchess5 won on time"]

1. d4 {[%clk 0:03:00.9]} 1... Nf6 {[%clk 0:02:59]} 2. Nf3 {[%clk 0:02:58]} 2...
e6 {[%clk 0:02:58.9]} 3. Bf4 {[%clk 0:02:57.6]} 3... c5 {[%clk 0:02:58.1]} 4. c3
{[%clk 0:02:55.8]} 4... Nc6 {[%clk 0:02:57.6]} 5. e3 {[%clk 0:02:54.8]} 5... d5
{[%clk 0:02:57.2]} 6. Nbd2 {[%clk 0:02:53]} 6... cxd4 {[%clk 0:02:57.1]} 7. exd4
{[%clk 0:02:52.6]} 7... Nh5 {[%clk 0:02:57.7]} 8. Be3 {[%clk 0:02:51.7]} 8...
Bd6 {[%clk 0:02:57.4]} 9. Ne5 {[%clk 0:02:37.6]} 9... g6 {[%clk 0:02:57.2]} 10.
Bb5 {[%clk 0:02:33.9]} 10... Qc7 {[%clk 0:02:55.1]} 11. Qa4 {[%clk 0:02:24.7]}
11... O-O {[%clk 0:02:54.8]} 12. Bxc6 {[%clk 0:02:09.5]} 12... bxc6 {[%clk
0:02:54.1]} 13. Nd3 {[%clk 0:01:29.2]} 13... f6 {[%clk 0:02:43.5]} 14. O-O-O
{[%clk 0:01:03.3]} 14... e5 {[%clk 0:02:37.3]} 15. f3 {[%clk 0:00:52.5]} 15...
a5 {[%clk 0:02:25.7]} 16. dxe5 {[%clk 0:00:39.3]} 16... fxe5 {[%clk 0:02:24.5]}
17. Bc5 {[%clk 0:00:39.3]} 17... Bf5 {[%clk 0:02:01.6]} 18. Nb3 {[%clk
0:00:28.3]} 18... Bxd3 {[%clk 0:01:04.4]} 19. Rxd3 {[%clk 0:00:27]} 19... Nf4
{[%clk 0:01:04.5]} 20. Rd2 {[%clk 0:00:27]} 20... Ne6 {[%clk 0:01:01.6]} 21.
Bxd6 {[%clk 0:00:23.8]} 21... Qxd6 {[%clk 0:01:02.2]} 22. Re1 {[%clk 0:00:23.8]}
22... Rfe8 {[%clk 0:00:31.8]} 23. Qa3 {[%clk 0:00:17.5]} 23... Qxa3 {[%clk
0:00:30.8]} 24. bxa3 {[%clk 0:00:18.4]} 24... a4 {[%clk 0:00:30.6]} 25. Na1
{[%clk 0:00:18.2]} 25... Nc5 {[%clk 0:00:29.7]} 26. Nc2 {[%clk 0:00:17.2]} 26...
e4 {[%clk 0:00:27.2]} 27. fxe4 {[%clk 0:00:14.5]} 27... Nxe4 {[%clk 0:00:26.5]}
28. Rde2 {[%clk 0:00:13.6]} 28... Reb8 {[%clk 0:00:25.3]} 29. Re3 {[%clk
0:00:12.6]} 29... Rb6 {[%clk 0:00:23.9]} 30. Nb4 {[%clk 0:00:12.2]} 30... Rab8
{[%clk 0:00:23.3]} 31. Kc2 {[%clk 0:00:09.3]} 31... Kg7 {[%clk 0:00:19.5]} 32.
c4 {[%clk 0:00:09.3]} 32... c5 {[%clk 0:00:18.9]} 33. Nxd5 {[%clk 0:00:08.6]}
33... Rb2+ {[%clk 0:00:18.9]} 34. Kd3 {[%clk 0:00:08.8]} 34... Nf2+ {[%clk
0:00:17.3]} 35. Kc3 {[%clk 0:00:06.9]} 35... Rxa2 {[%clk 0:00:17.5]} 36. Re7+
{[%clk 0:00:06.2]} 36... Kh6 {[%clk 0:00:17.7]} 0-1

[Event "Late-Titled-Tuesday-Blitz-June-18-2024"]
[Site "Chess.com"]
[Date "2024.06.18"]
[Round "3"]
[White "Korchmar_Vasiliy"]
[Black "Eloist"]
[Result "1-0"]
[WhiteElo "2647"]
[BlackElo "2458"]
[TimeControl "180+1"]
[EndTime "14:29:30 PDT"]
[Termination "Korchmar_Vasiliy won on time"]

1. d4 {[%clk 0:03:00.9]} 1... e6 {[%clk 0:03:00.3]} 2. c4 {[%clk 0:03:00.7]}
2... Nf6 {[%clk 0:03:00.6]} 3. Nf3 {[%clk 0:03:00.8]} 3... b6 {[%clk 0:03:00.1]}
4. g3 {[%clk 0:03:00.3]} 4... Bb7 {[%clk 0:03:00.3]} 5. Bg2 {[%clk 0:03:00]}
5... Be7 {[%clk 0:03:01]} 6. O-O {[%clk 0:03:00.1]} 6... O-O {[%clk 0:03:01.6]}
7. Re1 {[%clk 0:03:00.3]} 7... a5 {[%clk 0:03:00.2]} 8. Nc3 {[%clk 0:02:59.4]}
8... Ne4 {[%clk 0:02:57.1]} 9. Bd2 {[%clk 0:02:59.8]} 9... f5 {[%clk 0:02:54.4]}
10. d5 {[%clk 0:02:58.7]} 10... Bf6 {[%clk 0:02:50.3]} 11. Qc2 {[%clk
0:02:48.7]} 11... Bxc3 {[%clk 0:02:49.1]} 12. Bxc3 {[%clk 0:02:49.6]} 12... exd5
{[%clk 0:02:48.7]} 13. cxd5 {[%clk 0:02:43.9]} 13... Bxd5 {[%clk 0:02:48.7]} 14.
Red1 {[%clk 0:02:44.6]} 14... c6 {[%clk 0:02:48.4]} 15. Nh4 {[%clk 0:02:36.9]}
15... Nxc3 {[%clk 0:02:41.6]} 16. Qxc3 {[%clk 0:02:37.8]} 16... Bxg2 {[%clk
0:02:40.4]} 17. Kxg2 {[%clk 0:02:36.5]} 17... Qf6 {[%clk 0:02:31.6]} 18. Qb3+
{[%clk 0:02:34.7]} 18... Qf7 {[%clk 0:02:19.9]} 19. Qxb6 {[%clk 0:02:35.6]}
19... f4 {[%clk 0:02:13.3]} 20. Nf3 {[%clk 0:02:34.3]} 20... fxg3 {[%clk
0:02:09.3]} 21. hxg3 {[%clk 0:02:35.2]} 21... Na6 {[%clk 0:02:00]} 22. b3 {[%clk
0:02:35.2]} 22... Nb4 {[%clk 0:01:40.9]} 23. Qc5 {[%clk 0:02:22.5]} 23... Nd5
{[%clk 0:01:34.7]} 24. Rd4 {[%clk 0:02:15.4]} 24... Rae8 {[%clk 0:01:30.9]} 25.
Qc4 {[%clk 0:02:02.2]} 25... Re6 {[%clk 0:01:16.2]} 26. Rh1 {[%clk 0:01:47.1]}
26... Qe7 {[%clk 0:01:06]} 27. e4 {[%clk 0:01:09.7]} 27... Qf7 {[%clk
0:00:44.5]} 28. Qe2 {[%clk 0:00:43.7]} 28... Nf4+ {[%clk 0:00:30.1]} 29. gxf4
{[%clk 0:00:41.8]} 29... Qxf4 {[%clk 0:00:31]} 30. Rh3 {[%clk 0:00:34.2]} 30...
Rg6+ {[%clk 0:00:15.1]} 31. Rg3 {[%clk 0:00:34.1]} 31... Rxg3+ {[%clk
0:00:12.8]} 32. fxg3 {[%clk 0:00:35]} 32... Qg4 {[%clk 0:00:11.4]} 33. e5 {[%clk
0:00:31.1]} 33... Qg6 {[%clk 0:00:07.9]} 34. Rxd7 {[%clk 0:00:27.8]} 34... h5
{[%clk 0:00:04.9]} 35. e6 {[%clk 0:00:21.5]} 35... Re8 {[%clk 0:00:02.3]} 36. e7
{[%clk 0:00:20.6]} 36... Qf5 {[%clk 0:00:01.2]} 37. Rd8 {[%clk 0:00:20.1]} 1-0

[Event "Late-Titled-Tuesday-Blitz-June-18-2024"]
[Site "Chess.com"]
[Date "2024.06.18"]
[Round "3"]
[White "topce"]
[Black "GM_dmitrij"]
[Result "0-1"]
[WhiteElo "2523"]
[BlackElo "3045"]
[TimeControl "180+1"]
[EndTime "14:29:32 PDT"]
[Termination "GM_dmitrij won on time"]

1. e4 {[%clk 0:02:58.8]} 1... c5 {[%clk 0:02:55.9]} 2. Nf3 {[%clk 0:02:58.1]}
2... Nc6 {[%clk 0:02:45.8]} 3. Bb5 {[%clk 0:02:56.6]} 3... g6 {[%clk 0:02:43]}
4. Bxc6 {[%clk 0:02:51.1]} 4... bxc6 {[%clk 0:02:37.7]} 5. d3 {[%clk 0:02:41.1]}
5... Bg7 {[%clk 0:02:33.9]} 6. h3 {[%clk 0:02:39.1]} 6... e5 {[%clk 0:02:28.7]}
7. a4 {[%clk 0:02:32.2]} 7... Ne7 {[%clk 0:02:24.3]} 8. a5 {[%clk 0:02:31.4]}
8... O-O {[%clk 0:02:22.2]} 9. Nbd2 {[%clk 0:02:24]} 9... d6 {[%clk 0:02:20.9]}
10. O-O {[%clk 0:02:20.5]} 10... f5 {[%clk 0:02:13.1]} 11. Nc4 {[%clk
0:02:16.1]} 11... h6 {[%clk 0:01:55.9]} 12. Re1 {[%clk 0:01:46.7]} 12... Be6
{[%clk 0:01:45.1]} 13. Nfd2 {[%clk 0:01:35.4]} 13... f4 {[%clk 0:01:37.8]} 14.
c3 {[%clk 0:01:26.2]} 14... g5 {[%clk 0:01:36.7]} 15. Nf1 {[%clk 0:01:19.7]}
15... Ng6 {[%clk 0:01:26.2]} 16. Nh2 {[%clk 0:01:07.7]} 16... Nh4 {[%clk
0:01:15.2]} 17. f3 {[%clk 0:00:55.9]} 17... h5 {[%clk 0:01:13.7]} 18. b4 {[%clk
0:00:54.9]} 18... cxb4 {[%clk 0:01:01.8]} 19. cxb4 {[%clk 0:00:53]} 19... Qd7
{[%clk 0:01:02.3]} 20. Rf1 {[%clk 0:00:36.6]} 20... Rf6 {[%clk 0:00:58.9]} 21.
Ra2 {[%clk 0:00:28.3]} 21... Rg6 {[%clk 0:00:57.6]} 22. Qe1 {[%clk 0:00:23.7]}
22... Bf6 {[%clk 0:00:51.7]} 23. Raf2 {[%clk 0:00:20.1]} 23... g4 {[%clk
0:00:45.3]} 24. fxg4 {[%clk 0:00:18.4]} 24... hxg4 {[%clk 0:00:46.2]} 25. hxg4
{[%clk 0:00:17.6]} 25... Bxg4 {[%clk 0:00:47.1]} 26. Rxf4 {[%clk 0:00:16]} 26...
exf4 {[%clk 0:00:44.3]} 27. Rxf4 {[%clk 0:00:13.9]} 27... Nxg2 {[%clk
0:00:26.7]} 28. Kxg2 {[%clk 0:00:09.2]} 28... Bh3+ {[%clk 0:00:18]} 29. Kf2
{[%clk 0:00:07]} 29... Rg2+ {[%clk 0:00:17.2]} 30. Ke3 {[%clk 0:00:06.4]} 30...
Bg5 {[%clk 0:00:16]} 31. Nf3 {[%clk 0:00:03.3]} 31... Bxf4+ {[%clk 0:00:12.5]}
32. Kxf4 {[%clk 0:00:04.2]} 32... Qg4+ {[%clk 0:00:12.5]} 33. Ke3 {[%clk
0:00:04.4]} 33... Rf8 {[%clk 0:00:13.1]} 0-1

[Event "Late-Titled-Tuesday-Blitz-June-18-2024"]
[Site "Chess.com"]
[Date "2024.06.18"]
[Round "3"]
[White "Polish_fighter3000"]
[Black "JoakimVonAnd"]
[Result "1-0"]
[WhiteElo "3086"]
[BlackElo "2747"]
[TimeControl "180+1"]
[EndTime "14:29:33 PDT"]
[Termination "Polish_fighter3000 won on time"]

1. Nf3 {[%clk 0:03:00.9]} 1... d5 {[%clk 0:02:58]} 2. e3 {[%clk 0:03:00.3]} 2...
Nf6 {[%clk 0:02:56.4]} 3. c4 {[%clk 0:03:00.1]} 3... e6 {[%clk 0:02:56.9]} 4. b3
{[%clk 0:02:58.7]} 4... c5 {[%clk 0:02:55.8]} 5. Bb2 {[%clk 0:02:58.6]} 5... Nc6
{[%clk 0:02:55.8]} 6. cxd5 {[%clk 0:02:57.7]} 6... exd5 {[%clk 0:02:56.7]} 7.
Bb5 {[%clk 0:02:57.2]} 7... Be7 {[%clk 0:02:57.1]} 8. d4 {[%clk 0:02:55.3]} 8...
cxd4 {[%clk 0:02:47.6]} 9. Nxd4 {[%clk 0:02:51]} 9... Bd7 {[%clk 0:02:47.8]} 10.
O-O {[%clk 0:02:50.7]} 10... O-O {[%clk 0:02:47.6]} 11. Nf3 {[%clk 0:02:39.7]}
11... Rc8 {[%clk 0:02:44.1]} 12. h3 {[%clk 0:02:35.8]} 12... Bf5 {[%clk
0:02:41.5]} 13. Nc3 {[%clk 0:02:33.9]} 13... a6 {[%clk 0:02:38.1]} 14. Bd3
{[%clk 0:02:26.9]} 14... Ne4 {[%clk 0:02:37.9]} 15. Ne2 {[%clk 0:02:21.1]} 15...
Bf6 {[%clk 0:02:27.5]} 16. Bxf6 {[%clk 0:02:19.2]} 16... Qxf6 {[%clk 0:02:28.4]}
17. Nfd4 {[%clk 0:02:03.8]} 17... Bg6 {[%clk 0:02:13.9]} 18. Nxc6 {[%clk
0:01:55.4]} 18... Rxc6 {[%clk 0:02:07.1]} 19. Bxe4 {[%clk 0:01:45.5]} 19... Bxe4
{[%clk 0:01:51.8]} 20. Nd4 {[%clk 0:01:45.7]} 20... Rd6 {[%clk 0:01:41.3]} 21.
Rc1 {[%clk 0:01:22.6]} 21... Qg5 {[%clk 0:01:40.5]} 22. Qg4 {[%clk 0:01:22.9]}
22... Qd8 {[%clk 0:01:22.3]} 23. Qf4 {[%clk 0:01:19.5]} 23... Rg6 {[%clk
0:01:07.8]} 24. f3 {[%clk 0:01:18.2]} 24... Bd3 {[%clk 0:01:02.8]} 25. Rfd1
{[%clk 0:01:17.3]} 25... Bb5 {[%clk 0:01:03.1]} 26. Nxb5 {[%clk 0:01:10.9]}
26... axb5 {[%clk 0:01:04]} 27. Rc5 {[%clk 0:01:11.2]} 27... Qa8 {[%clk
0:00:37.4]} 28. Rd2 {[%clk 0:01:04.4]} 28... Qa3 {[%clk 0:00:21.5]} 29. Rcxd5
{[%clk 0:01:03.5]} 29... Qc1+ {[%clk 0:00:20.8]} 30. Kh2 {[%clk 0:01:03.4]}
30... h6 {[%clk 0:00:20.8]} 31. e4 {[%clk 0:01:01.3]} 31... Rf6 {[%clk
0:00:14.4]} 32. Qe5 {[%clk 0:00:55.6]} 32... Kh7 {[%clk 0:00:14.5]} 33. Qb2
{[%clk 0:00:51.9]} 33... Qc7+ {[%clk 0:00:11.8]} 34. Kh1 {[%clk 0:00:52.2]}
34... Rc8 {[%clk 0:00:10.7]} 35. e5 {[%clk 0:00:33.9]} 35... Rg6 {[%clk
0:00:10]} 36. Rxb5 {[%clk 0:00:32.3]} 36... Qe7 {[%clk 0:00:08.2]} 37. Rbd5
{[%clk 0:00:20.1]} 37... Qg5 {[%clk 0:00:08.1]} 38. e6 {[%clk 0:00:20.4]} 38...
Qxg2+ {[%clk 0:00:06]} 39. Rxg2 {[%clk 0:00:19.9]} 1-0

[Event "Late-Titled-Tuesday-Blitz-June-18-2024"]
[Site "Chess.com"]
[Date "2024.06.18"]
[Round "3"]
[White "AlphaPerseii"]
[Black "LaStreetCmaMaison"]
[Result "0-1"]
[WhiteElo "2424"]
[BlackElo "2618"]
[TimeControl "180+1"]
[EndTime "14:29:38 PDT"]
[Termination "LaStreetCmaMaison won by resignation"]

1. d4 {[%clk 0:03:00.9]} 1... d5 {[%clk 0:03:00.5]} 2. c4 {[%clk 0:03:01.2]}
2... e5 {[%clk 0:03:01.1]} 3. dxe5 {[%clk 0:02:23.1]} 3... d4 {[%clk 0:03:02]}
4. Nf3 {[%clk 0:02:14.4]} 4... Nc6 {[%clk 0:03:02]} 5. Bf4 {[%clk 0:01:48.7]}
5... Nge7 {[%clk 0:02:52]} 6. e3 {[%clk 0:01:44.4]} 6... Ng6 {[%clk 0:02:35.7]}
7. Bg5 {[%clk 0:01:44.6]} 7... f6 {[%clk 0:02:36.1]} 8. exf6 {[%clk 0:01:35.3]}
8... gxf6 {[%clk 0:02:37]} 9. Bf4 {[%clk 0:01:33]} 9... Bb4+ {[%clk 0:02:36.9]}
10. Nbd2 {[%clk 0:01:32.5]} 10... Nxf4 {[%clk 0:02:08.2]} 11. exf4 {[%clk
0:01:31.8]} 11... d3 {[%clk 0:01:58]} 12. Qb3 {[%clk 0:01:13.2]} 12... Qe7+
{[%clk 0:01:42.9]} 13. Kd1 {[%clk 0:01:11.7]} 13... Bf5 {[%clk 0:01:43.6]} 14.
Bxd3 {[%clk 0:00:55.7]} 14... Na5 {[%clk 0:01:14.9]} 15. Qa4+ {[%clk 0:00:53]}
15... Bd7 {[%clk 0:01:13.9]} 16. Qc2 {[%clk 0:00:53.7]} 16... O-O-O {[%clk
0:01:11.3]} 17. a3 {[%clk 0:00:46.1]} 17... Bxd2 {[%clk 0:01:02.4]} 18. Nxd2
{[%clk 0:00:40.1]} 18... Bg4+ {[%clk 0:00:54.2]} 19. f3 {[%clk 0:00:38.6]} 19...
Qe3 {[%clk 0:00:53.7]} 20. Re1 {[%clk 0:00:28.7]} 20... Qxd3 {[%clk 0:00:47.2]}
21. fxg4 {[%clk 0:00:16.5]} 21... Nxc4 {[%clk 0:00:36.5]} 22. Qxd3 {[%clk
0:00:12.4]} 22... Rxd3 {[%clk 0:00:37.4]} 23. Kc2 {[%clk 0:00:13.1]} 23... Rxd2+
{[%clk 0:00:35.7]} 24. Kc3 {[%clk 0:00:13.8]} 24... Rxg2 {[%clk 0:00:17.8]} 25.
Kxc4 {[%clk 0:00:13.8]} 25... Rxg4 {[%clk 0:00:17.2]} 26. Re4 {[%clk 0:00:13.5]}
26... Rh4 {[%clk 0:00:13.9]} 27. Rg1 {[%clk 0:00:08.3]} 27... Rxh2 {[%clk
0:00:10.2]} 28. b3 {[%clk 0:00:08.8]} 28... Rc2+ {[%clk 0:00:08.9]} 29. Kd3
{[%clk 0:00:08.4]} 29... Rc6 {[%clk 0:00:08.7]} 30. Rg7 {[%clk 0:00:08.2]} 30...
h5 {[%clk 0:00:09.1]} 31. f5 {[%clk 0:00:03.4]} 31... h4 {[%clk 0:00:09.2]} 32.
Reg4 {[%clk 0:00:03.2]} 32... Rd6+ {[%clk 0:00:06.8]} 33. Ke4 {[%clk 0:00:02.7]}
33... h3 {[%clk 0:00:06.7]} 34. Rg8+ {[%clk 0:00:02]} 34... Rd8 {[%clk
0:00:06.3]} 35. Rxd8+ {[%clk 0:00:02.5]} 35... Kxd8 {[%clk 0:00:07.2]} 36. Rg1
{[%clk 0:00:03.1]} 36... h2 {[%clk 0:00:07.2]} 37. Rh1 {[%clk 0:00:03.6]} 37...
Kd7 {[%clk 0:00:07.5]} 0-1

[Event "Late-Titled-Tuesday-Blitz-June-18-2024"]
[Site "Chess.com"]
[Date "2024.06.18"]
[Round "3"]
[White "el_sporco"]
[Black "AlivodicDario"]
[Result "1-0"]
[WhiteElo "2573"]
[BlackElo "2373"]
[TimeControl "180+1"]
[EndTime "14:29:38 PDT"]
[Termination "el_sporco won by resignation"]

1. e4 {[%clk 0:03:00.9]} 1... e6 {[%clk 0:01:27.1]} 2. d4 {[%clk 0:02:59.5]}
2... d5 {[%clk 0:01:27.7]} 3. Nd2 {[%clk 0:02:58.1]} 3... Nf6 {[%clk 0:01:28.2]}
4. Bd3 {[%clk 0:02:57.7]} 4... c5 {[%clk 0:01:27.7]} 5. dxc5 {[%clk 0:02:56]}
5... dxe4 {[%clk 0:01:27.9]} 6. Nxe4 {[%clk 0:02:53.4]} 6... Nxe4 {[%clk
0:01:22.8]} 7. Bxe4 {[%clk 0:02:54.3]} 7... Qxd1+ {[%clk 0:01:23.1]} 8. Kxd1
{[%clk 0:02:55]} 8... Bxc5 {[%clk 0:01:23.7]} 9. Ke2 {[%clk 0:02:54]} 9... Nc6
{[%clk 0:01:21.4]} 10. c3 {[%clk 0:02:53.9]} 10... Bd7 {[%clk 0:01:18.4]} 11.
Be3 {[%clk 0:02:54]} 11... Bxe3 {[%clk 0:01:14]} 12. Kxe3 {[%clk 0:02:54.9]}
12... O-O-O {[%clk 0:01:14.7]} 13. Nf3 {[%clk 0:02:53.7]} 13... f6 {[%clk
0:01:12.3]} 14. Rhd1 {[%clk 0:02:49.8]} 14... Ne7 {[%clk 0:01:06.6]} 15. Rd6
{[%clk 0:02:43.6]} 15... e5 {[%clk 0:00:53.2]} 16. Rad1 {[%clk 0:02:41]} 16...
Bc6 {[%clk 0:00:51.9]} 17. Rxd8+ {[%clk 0:02:32.2]} 17... Rxd8 {[%clk
0:00:52.8]} 18. Rxd8+ {[%clk 0:02:22]} 18... Kxd8 {[%clk 0:00:49.1]} 19. b4
{[%clk 0:02:16.7]} 19... Nd5+ {[%clk 0:00:42.3]} 20. Kd2 {[%clk 0:02:12.4]}
20... Nf4 {[%clk 0:00:37.6]} 21. Bxc6 {[%clk 0:02:07.9]} 21... bxc6 {[%clk
0:00:38.5]} 22. g3 {[%clk 0:02:07.2]} 22... Ne6 {[%clk 0:00:19.7]} 23. Kd3
{[%clk 0:02:05.5]} 23... Kc7 {[%clk 0:00:18.6]} 24. Kc4 {[%clk 0:02:05.4]} 24...
Nd8 {[%clk 0:00:14.9]} 25. Kd3 {[%clk 0:02:01.9]} 25... Nf7 {[%clk 0:00:13.9]}
26. c4 {[%clk 0:02:01.6]} 26... Nd6 {[%clk 0:00:12.9]} 27. Nd2 {[%clk 0:02:00]}
27... c5 {[%clk 0:00:11]} 28. b5 {[%clk 0:01:53.4]} 28... f5 {[%clk 0:00:07.2]}
29. f3 {[%clk 0:01:52.2]} 29... a6 {[%clk 0:00:05.9]} 30. a4 {[%clk 0:01:48.5]}
30... axb5 {[%clk 0:00:04.8]} 31. cxb5 {[%clk 0:01:48.2]} 31... Kb6 {[%clk
0:00:04.5]} 32. g4 {[%clk 0:01:38.8]} 32... fxg4 {[%clk 0:00:03.7]} 33. fxg4
{[%clk 0:01:38.3]} 33... Ka5 {[%clk 0:00:04.2]} 34. Nc4+ {[%clk 0:01:17.7]}
34... Nxc4 {[%clk 0:00:02.6]} 35. Kxc4 {[%clk 0:01:18.6]} 35... e4 {[%clk
0:00:03.3]} 36. g5 {[%clk 0:01:12.6]} 36... Kb6 {[%clk 0:00:02]} 37. h3 {[%clk
0:01:07]} 37... h5 {[%clk 0:00:02]} 38. Kc3 {[%clk 0:00:49.5]} 38... g6 {[%clk
0:00:01.3]} 39. Kd2 {[%clk 0:00:47]} 39... c4 {[%clk 0:00:01.3]} 40. h4 {[%clk
0:00:41.9]} 40... Ka5 {[%clk 0:00:01.5]} 41. Kc3 {[%clk 0:00:38.9]} 41... e3
{[%clk 0:00:01.6]} 42. Kc2 {[%clk 0:00:35.9]} 42... Kb6 {[%clk 0:00:01.9]} 43.
Kc3 {[%clk 0:00:35.3]} 43... Kc5 {[%clk 0:00:02.3]} 44. Kc2 {[%clk 0:00:34.8]}
44... Kd4 {[%clk 0:00:02.8]} 45. b6 {[%clk 0:00:34.6]} 45... e2 {[%clk
0:00:03.2]} 46. Kd2 {[%clk 0:00:34.6]} 46... c3+ {[%clk 0:00:03.5]} 47. Kxe2
{[%clk 0:00:34.9]} 47... Kc4 {[%clk 0:00:04.2]} 48. b7 {[%clk 0:00:35]} 1-0

[Event "Late-Titled-Tuesday-Blitz-June-18-2024"]
[Site "Chess.com"]
[Date "2024.06.18"]
[Round "3"]
[White "IMJonathanCarlstedt"]
[Black "temus_galaktionov"]
[Result "0-1"]
[WhiteElo "2603"]
[BlackElo "2872"]
[TimeControl "180+1"]
[EndTime "14:29:41 PDT"]
[Termination "temus_galaktionov won on time"]

1. c4 {[%clk 0:02:56.8]} 1... c6 {[%clk 0:03:00.9]} 2. g3 {[%clk 0:02:56]} 2...
g6 {[%clk 0:03:01.7]} 3. Nf3 {[%clk 0:02:55.3]} 3... Bg7 {[%clk 0:03:02.6]} 4.
Bg2 {[%clk 0:02:55.4]} 4... Nf6 {[%clk 0:03:02.1]} 5. O-O {[%clk 0:02:55.8]}
5... O-O {[%clk 0:03:03]} 6. b3 {[%clk 0:02:55.9]} 6... d6 {[%clk 0:03:03.5]} 7.
Bb2 {[%clk 0:02:55.8]} 7... Nbd7 {[%clk 0:03:03.8]} 8. d3 {[%clk 0:02:55.6]}
8... e5 {[%clk 0:03:03.9]} 9. Nbd2 {[%clk 0:02:50]} 9... Re8 {[%clk 0:03:03.9]}
10. e4 {[%clk 0:02:49.4]} 10... Nc5 {[%clk 0:03:02.8]} 11. Qc2 {[%clk
0:02:48.1]} 11... a5 {[%clk 0:03:03.4]} 12. Rae1 {[%clk 0:02:44]} 12... Qb6
{[%clk 0:02:59.2]} 13. d4 {[%clk 0:02:34.7]} 13... Ncd7 {[%clk 0:02:56]} 14. c5
{[%clk 0:02:28.4]} 14... dxc5 {[%clk 0:02:55.7]} 15. dxe5 {[%clk 0:02:28.1]}
15... Ng4 {[%clk 0:02:56.2]} 16. Nc4 {[%clk 0:02:27.3]} 16... Qc7 {[%clk
0:02:56.5]} 17. Nd6 {[%clk 0:02:12.1]} 17... Re7 {[%clk 0:02:55.8]} 18. Nxf7
{[%clk 0:02:04.1]} 18... Kxf7 {[%clk 0:02:49.5]} 19. e6+ {[%clk 0:01:45.6]}
19... Kg8 {[%clk 0:02:11.7]} 20. exd7 {[%clk 0:01:39.8]} 20... Bxd7 {[%clk
0:02:12.6]} 21. Bxg7 {[%clk 0:01:35.5]} 21... Kxg7 {[%clk 0:02:13.5]} 22. h3
{[%clk 0:01:35.1]} 22... Nf6 {[%clk 0:02:10.2]} 23. e5 {[%clk 0:01:27.6]} 23...
Nd5 {[%clk 0:02:07.3]} 24. Qxc5 {[%clk 0:01:24.5]} 24... Rae8 {[%clk 0:02:06.9]}
25. Qd4 {[%clk 0:01:23.2]} 25... Kg8 {[%clk 0:02:05.6]} 26. Qh4 {[%clk
0:01:11.8]} 26... Bf5 {[%clk 0:02:01.9]} 27. Rc1 {[%clk 0:00:44.1]} 27... Nb4
{[%clk 0:01:52.3]} 28. a3 {[%clk 0:00:42.5]} 28... Nd3 {[%clk 0:01:52]} 29. Qc4+
{[%clk 0:00:37.4]} 29... Kg7 {[%clk 0:01:48.3]} 30. Rc3 {[%clk 0:00:32.4]} 30...
Nxe5 {[%clk 0:01:48.1]} 31. Nxe5 {[%clk 0:00:33.3]} 31... Rxe5 {[%clk
0:01:47.4]} 32. Qd4 {[%clk 0:00:33]} 32... Rd8 {[%clk 0:01:45]} 33. Qf4 {[%clk
0:00:30.4]} 33... Qe7 {[%clk 0:01:44.1]} 34. Kh2 {[%clk 0:00:24.6]} 34... h6
{[%clk 0:01:29.1]} 35. h4 {[%clk 0:00:22.8]} 35... Bc8 {[%clk 0:01:21.5]} 36.
Rcc1 {[%clk 0:00:18.9]} 36... Qf6 {[%clk 0:01:21.4]} 37. Qc4 {[%clk 0:00:16]}
37... Rd2 {[%clk 0:01:18.4]} 38. Qc3 {[%clk 0:00:14.8]} 38... Ree2 {[%clk
0:01:06.6]} 39. Qxf6+ {[%clk 0:00:15.7]} 39... Kxf6 {[%clk 0:01:06.9]} 40. Kg1
{[%clk 0:00:16.2]} 40... Rb2 {[%clk 0:01:05.1]} 41. Rb1 {[%clk 0:00:16.2]} 41...
Be6 {[%clk 0:01:04.1]} 42. b4 {[%clk 0:00:15.3]} 42... axb4 {[%clk 0:00:58.7]}
43. axb4 {[%clk 0:00:16.2]} 43... Bf5 {[%clk 0:00:58.8]} 44. Rxb2 {[%clk
0:00:12.7]} 44... Rxb2 {[%clk 0:00:59.7]} 45. Rd1 {[%clk 0:00:12.7]} 45... Rxb4
{[%clk 0:00:58.6]} 46. Rd6+ {[%clk 0:00:13.2]} 46... Ke7 {[%clk 0:00:58.1]} 47.
Rd2 {[%clk 0:00:12.6]} 47... c5 {[%clk 0:00:55.4]} 48. Re2+ {[%clk 0:00:08]}
48... Kd6 {[%clk 0:00:54.8]} 49. Rd2+ {[%clk 0:00:08.4]} 49... Kc7 {[%clk
0:00:54.6]} 50. f3 {[%clk 0:00:08.2]} 50... h5 {[%clk 0:00:54.4]} 51. Bf1 {[%clk
0:00:06.9]} 51... b5 {[%clk 0:00:52]} 52. Be2 {[%clk 0:00:04.3]} 52... Kc6
{[%clk 0:00:49.1]} 53. Kf2 {[%clk 0:00:04.1]} 53... Rd4 {[%clk 0:00:48.3]} 54.
Ra2 {[%clk 0:00:03.7]} 54... c4 {[%clk 0:00:47.6]} 55. Ra6+ {[%clk 0:00:02.6]}
55... Kc5 {[%clk 0:00:47.3]} 0-1